[Event "Early-Titled-Tuesday-Blitz-February-06-2024"]
[Site "Chess.com"]
[Date "2024.02.06"]
[Round "6"]
[White "EsmeraldasAnderson03"]
[Black "djano"]
[Result "0-1"]
[WhiteElo "2411"]
[BlackElo "2604"]
[TimeControl "180+1"]
[EndTime "9:06:30 PST"]
[Termination "djano won on time"]

1. d4 {[%clk 0:03:00.9]} 1... d5 {[%clk 0:02:57.7]} 2. c4 {[%clk 0:03:00.9]}
2... e6 {[%clk 0:02:57.7]} 3. cxd5 {[%clk 0:02:59.9]} 3... exd5 {[%clk
0:02:58.6]} 4. Nc3 {[%clk 0:03:00.3]} 4... c5 {[%clk 0:02:58.7]} 5. Nf3 {[%clk
0:03:00]} 5... Nc6 {[%clk 0:02:58.7]} 6. e3 {[%clk 0:02:59.1]} 6... Nf6 {[%clk
0:02:58.6]} 7. Be2 {[%clk 0:02:58.6]} 7... Bd6 {[%clk 0:02:56.1]} 8. dxc5 {[%clk
0:02:58.8]} 8... Bxc5 {[%clk 0:02:57]} 9. O-O {[%clk 0:02:58.9]} 9... O-O {[%clk
0:02:57.3]} 10. Nb5 {[%clk 0:02:59.2]} 10... Ne4 {[%clk 0:02:52.4]} 11. b3
{[%clk 0:02:56.8]} 11... Qf6 {[%clk 0:02:51.9]} 12. Nfd4 {[%clk 0:02:56.7]}
12... a6 {[%clk 0:02:46]} 13. Nc7 {[%clk 0:02:45]} 13... Nxd4 {[%clk 0:02:36.5]}
14. exd4 {[%clk 0:02:00.2]} 14... Bxd4 {[%clk 0:02:37.4]} 15. Nxa8 {[%clk
0:01:57.1]} 15... Bxa1 {[%clk 0:02:04.4]} 16. Qxd5 {[%clk 0:00:58.2]} 16... Bf5
{[%clk 0:01:52.4]} 17. Qxb7 {[%clk 0:00:13.7]} 17... Be5 {[%clk 0:01:15.6]} 18.
Nb6 {[%clk 0:00:09.6]} 18... Rb8 {[%clk 0:01:12.2]} 19. Nd5 {[%clk 0:00:03.4]}
19... Rxb7 {[%clk 0:01:03.2]} 20. Nxf6+ {[%clk 0:00:03.6]} 20... gxf6 {[%clk
0:01:02.8]} 21. Bf3 {[%clk 0:00:03.8]} 21... Rc7 {[%clk 0:01:00.9]} 22. Be3
{[%clk 0:00:03.9]} 22... Nc3 {[%clk 0:00:57.9]} 23. h4 {[%clk 0:00:04]} 23...
Nxa2 {[%clk 0:00:56.8]} 24. g4 {[%clk 0:00:04.2]} 24... Bc2 {[%clk 0:00:55.6]}
25. Bd5 {[%clk 0:00:02.8]} 25... Nb4 {[%clk 0:00:53.7]} 26. Bc4 {[%clk
0:00:03.5]} 26... Bd3 {[%clk 0:00:53]} 0-1

[Event "Early-Titled-Tuesday-Blitz-February-06-2024"]
[Site "Chess.com"]
[Date "2024.02.06"]
[Round "6"]
[White "ferdipy"]
[Black "NM_Antelacus"]
[Result "1-0"]
[WhiteElo "2402"]
[BlackElo "2225"]
[TimeControl "180+1"]
[EndTime "9:06:33 PST"]
[Termination "ferdipy won on time"]

1. e4 {[%clk 0:02:17.7]} 1... c5 {[%clk 0:02:59.2]} 2. d4 {[%clk 0:02:17.4]}
2... cxd4 {[%clk 0:02:58.7]} 3. c3 {[%clk 0:02:18.3]} 3... d3 {[%clk 0:02:59.1]}
4. c4 {[%clk 0:02:18]} 4... Nc6 {[%clk 0:02:58.3]} 5. Bxd3 {[%clk 0:02:18.9]}
5... g6 {[%clk 0:02:58.6]} 6. Nf3 {[%clk 0:02:18.1]} 6... Bg7 {[%clk 0:02:58.8]}
7. O-O {[%clk 0:02:18.6]} 7... d6 {[%clk 0:02:58.9]} 8. h3 {[%clk 0:02:18.4]}
8... Nf6 {[%clk 0:02:58.8]} 9. Nc3 {[%clk 0:02:19.1]} 9... O-O {[%clk
0:02:58.6]} 10. Be3 {[%clk 0:02:19.8]} 10... a6 {[%clk 0:02:49.2]} 11. Qe2
{[%clk 0:02:20.2]} 11... Qc7 {[%clk 0:02:48.8]} 12. Rac1 {[%clk 0:02:20.7]}
12... Be6 {[%clk 0:02:41.6]} 13. Rfd1 {[%clk 0:02:21]} 13... Rac8 {[%clk
0:02:40.9]} 14. a3 {[%clk 0:02:21]} 14... Qb8 {[%clk 0:02:40.4]} 15. b4 {[%clk
0:02:21.1]} 15... Rfd8 {[%clk 0:02:33.1]} 16. Nd2 {[%clk 0:02:14.8]} 16... Ne5
{[%clk 0:02:30.1]} 17. f4 {[%clk 0:02:12.3]} 17... Nxd3 {[%clk 0:02:27.9]} 18.
Qxd3 {[%clk 0:02:13.2]} 18... b5 {[%clk 0:02:02.6]} 19. cxb5 {[%clk 0:02:09.2]}
19... axb5 {[%clk 0:01:59]} 20. Nxb5 {[%clk 0:02:08.5]} 20... Rxc1 {[%clk
0:01:57.3]} 21. Rxc1 {[%clk 0:02:08.2]} 21... Bd7 {[%clk 0:01:42.4]} 22. Nc3
{[%clk 0:02:06.4]} 22... Qa8 {[%clk 0:01:38.7]} 23. a4 {[%clk 0:02:01.9]} 23...
Rc8 {[%clk 0:01:36.2]} 24. Nc4 {[%clk 0:01:58.1]} 24... Qb7 {[%clk 0:01:06.4]}
25. Nb6 {[%clk 0:01:54.6]} 25... Rc7 {[%clk 0:00:57.8]} 26. a5 {[%clk
0:01:54.1]} 26... Bc6 {[%clk 0:00:54.2]} 27. Ncd5 {[%clk 0:01:52.2]} 27... Bxd5
{[%clk 0:00:53.2]} 28. Rxc7 {[%clk 0:01:48.1]} 28... Qxc7 {[%clk 0:00:52.3]} 29.
exd5 {[%clk 0:01:48]} 29... Nd7 {[%clk 0:00:40.9]} 30. Nxd7 {[%clk 0:01:37.8]}
30... Qxd7 {[%clk 0:00:41.2]} 31. a6 {[%clk 0:01:34.7]} 31... Qa4 {[%clk
0:00:36.6]} 32. a7 {[%clk 0:01:32.5]} 32... Bf6 {[%clk 0:00:30.8]} 33. Qc4
{[%clk 0:01:25.5]} 33... Kg7 {[%clk 0:00:29.1]} 34. Qc8 {[%clk 0:01:21.7]} 34...
Qb3 {[%clk 0:00:15.7]} 35. a8=Q {[%clk 0:01:20.1]} 35... Qxe3+ {[%clk
0:00:14.7]} 36. Kh1 {[%clk 0:01:20.1]} 36... Qe1+ {[%clk 0:00:10]} 37. Kh2
{[%clk 0:01:20]} 37... Kh6 {[%clk 0:00:08.3]} 38. Qg4 {[%clk 0:01:19.1]} 38...
Qxb4 {[%clk 0:00:03.6]} 39. Qf8+ {[%clk 0:01:18.9]} 1-0

[Event "Early-Titled-Tuesday-Blitz-February-06-2024"]
[Site "Chess.com"]
[Date "2024.02.06"]
[Round "6"]
[White "ScofieldMichael01"]
[Black "DonMicheleCorleone"]
[Result "1-0"]
[WhiteElo "2626"]
[BlackElo "2420"]
[TimeControl "180+1"]
[EndTime "9:06:37 PST"]
[Termination "ScofieldMichael01 won by resignation"]

1. d4 {[%clk 0:03:00.9]} 1... d5 {[%clk 0:02:59.6]} 2. Nf3 {[%clk 0:03:00.9]}
2... Bf5 {[%clk 0:02:59.5]} 3. g3 {[%clk 0:02:59.5]} 3... e6 {[%clk 0:02:59.7]}
4. Bg2 {[%clk 0:03:00.1]} 4... h6 {[%clk 0:02:59.8]} 5. O-O {[%clk 0:03:00.7]}
5... c6 {[%clk 0:03:00.1]} 6. c4 {[%clk 0:03:01.4]} 6... dxc4 {[%clk 0:02:58.9]}
7. a4 {[%clk 0:03:01.3]} 7... Nf6 {[%clk 0:02:58.2]} 8. Nc3 {[%clk 0:03:01.5]}
8... Ne4 {[%clk 0:02:57.3]} 9. Ne5 {[%clk 0:02:59.6]} 9... Nxc3 {[%clk
0:02:56.3]} 10. bxc3 {[%clk 0:03:00.5]} 10... Nd7 {[%clk 0:02:55.1]} 11. Nxc4
{[%clk 0:03:00]} 11... Be7 {[%clk 0:02:47.1]} 12. a5 {[%clk 0:03:00.1]} 12...
O-O {[%clk 0:02:44]} 13. e4 {[%clk 0:02:59.4]} 13... Bh7 {[%clk 0:02:42.9]} 14.
Rb1 {[%clk 0:03:00]} 14... b5 {[%clk 0:02:40.1]} 15. axb6 {[%clk 0:02:57.8]}
15... axb6 {[%clk 0:02:35.3]} 16. Be3 {[%clk 0:02:53.9]} 16... b5 {[%clk
0:02:29.4]} 17. Nd2 {[%clk 0:02:53.4]} 17... Qa5 {[%clk 0:02:19]} 18. Qb3 {[%clk
0:02:51.5]} 18... Rfb8 {[%clk 0:02:11.9]} 19. Bf4 {[%clk 0:02:39.5]} 19... Rb7
{[%clk 0:01:58.7]} 20. Nc4 {[%clk 0:02:34.1]} 20... Qa4 {[%clk 0:01:34.6]} 21.
Nd6 {[%clk 0:02:31]} 21... Rba7 {[%clk 0:01:23]} 22. g4 {[%clk 0:01:31]} 22...
f6 {[%clk 0:01:11.6]} 23. Qxe6+ {[%clk 0:01:29.6]} 23... Kh8 {[%clk 0:01:04.5]}
24. Nf7+ {[%clk 0:01:29]} 24... Kg8 {[%clk 0:01:05.1]} 25. Nxh6+ {[%clk
0:01:29.1]} 25... Kh8 {[%clk 0:01:05.7]} 26. Nf7+ {[%clk 0:01:27.7]} 26... Kg8
{[%clk 0:01:05.9]} 27. Ng5+ {[%clk 0:01:08.7]} 27... Kh8 {[%clk 0:01:03.7]} 28.
Nxh7 {[%clk 0:01:09.2]} 28... Nb6 {[%clk 0:00:30.7]} 29. e5 {[%clk 0:01:00.1]}
29... Kxh7 {[%clk 0:00:30.2]} 30. Be4+ {[%clk 0:00:59.2]} 30... Kh8 {[%clk
0:00:30.5]} 31. Qf5 {[%clk 0:00:53.3]} 31... Kg8 {[%clk 0:00:30.9]} 32. e6
{[%clk 0:00:52]} 32... Kf8 {[%clk 0:00:27.4]} 33. Qh7 {[%clk 0:00:49.7]} 33...
Ke8 {[%clk 0:00:27.8]} 34. Bxc6+ {[%clk 0:00:49.4]} 34... Kd8 {[%clk 0:00:27.6]}
35. Qg8+ {[%clk 0:00:48.8]} 1-0

[Event "Early-Titled-Tuesday-Blitz-February-06-2024"]
[Site "Chess.com"]
[Date "2024.02.06"]
[Round "6"]
[White "Arteler"]
[Black "ChessBliss09"]
[Result "0-1"]
[WhiteElo "2525"]
[BlackElo "2139"]
[TimeControl "180+1"]
[EndTime "9:06:43 PST"]
[Termination "ChessBliss09 won by checkmate"]

1. Nf3 {[%clk 0:02:59.7]} 1... d5 {[%clk 0:02:59.5]} 2. d4 {[%clk 0:02:59.7]}
2... Nf6 {[%clk 0:03:00]} 3. c4 {[%clk 0:02:59.4]} 3... c6 {[%clk 0:02:59.4]} 4.
cxd5 {[%clk 0:02:57.2]} 4... cxd5 {[%clk 0:02:59.3]} 5. Nc3 {[%clk 0:02:58.1]}
5... Nc6 {[%clk 0:02:59.9]} 6. Bf4 {[%clk 0:02:55.8]} 6... a6 {[%clk 0:02:59]}
7. e3 {[%clk 0:02:55.5]} 7... e6 {[%clk 0:02:58.4]} 8. Bd3 {[%clk 0:02:53.8]}
8... Bd6 {[%clk 0:02:59]} 9. Bg3 {[%clk 0:02:53.5]} 9... O-O {[%clk 0:02:58.4]}
10. Qc2 {[%clk 0:02:45]} 10... Qc7 {[%clk 0:02:45]} 11. Bh4 {[%clk 0:02:29.8]}
11... Nb4 {[%clk 0:02:43.9]} 12. Qb1 {[%clk 0:02:21.9]} 12... Nxd3+ {[%clk
0:02:41.1]} 13. Qxd3 {[%clk 0:02:22.8]} 13... Be7 {[%clk 0:02:18.5]} 14. Bg3
{[%clk 0:02:21.2]} 14... Bd6 {[%clk 0:02:17.7]} 15. Bh4 {[%clk 0:02:16.9]} 15...
Be7 {[%clk 0:02:17]} 16. Bg3 {[%clk 0:02:16.5]} 16... Qb6 {[%clk 0:02:15.2]} 17.
Qc2 {[%clk 0:01:48.9]} 17... Bd7 {[%clk 0:02:14.7]} 18. O-O {[%clk 0:01:36.9]}
18... Rac8 {[%clk 0:02:13.4]} 19. Qb3 {[%clk 0:01:26.8]} 19... Qxb3 {[%clk
0:01:59.9]} 20. axb3 {[%clk 0:01:27.7]} 20... Bb4 {[%clk 0:01:59.1]} 21. Rfc1
{[%clk 0:01:10.4]} 21... Bxc3 {[%clk 0:01:58.7]} 22. Rxc3 {[%clk 0:01:10.2]}
22... Rxc3 {[%clk 0:01:58.3]} 23. bxc3 {[%clk 0:01:11.1]} 23... Rc8 {[%clk
0:01:58.1]} 24. Rc1 {[%clk 0:01:10.5]} 24... Ne4 {[%clk 0:01:58.3]} 25. c4
{[%clk 0:01:05.4]} 25... Nxg3 {[%clk 0:01:37.8]} 26. hxg3 {[%clk 0:01:04.4]}
26... Kf8 {[%clk 0:01:37]} 27. Ne5 {[%clk 0:01:02.4]} 27... Ke7 {[%clk
0:01:34.9]} 28. c5 {[%clk 0:00:54.7]} 28... f6 {[%clk 0:01:33.8]} 29. Nxd7
{[%clk 0:00:41.5]} 29... Kxd7 {[%clk 0:01:34.7]} 30. Kf1 {[%clk 0:00:41.3]}
30... b6 {[%clk 0:01:31.4]} 31. b4 {[%clk 0:00:41.3]} 31... a5 {[%clk
0:01:30.9]} 32. bxa5 {[%clk 0:00:28.2]} 32... bxc5 {[%clk 0:01:27.7]} 33. dxc5
{[%clk 0:00:19.9]} 33... Ra8 {[%clk 0:01:26]} 34. Rb1 {[%clk 0:00:18.5]} 34...
Kc6 {[%clk 0:01:15.7]} 35. Rb6+ {[%clk 0:00:15.9]} 35... Kxc5 {[%clk 0:01:16]}
36. Rb7 {[%clk 0:00:16.2]} 36... Rxa5 {[%clk 0:01:10.9]} 37. Rxg7 {[%clk
0:00:16.2]} 37... Kc4 {[%clk 0:01:06.2]} 38. Rxh7 {[%clk 0:00:15.8]} 38... Kd3
{[%clk 0:01:06.5]} 39. Rf7 {[%clk 0:00:12.9]} 39... Ra1# {[%clk 0:01:05.5]} 0-1

[Event "Early-Titled-Tuesday-Blitz-February-06-2024"]
[Site "Chess.com"]
[Date "2024.02.06"]
[Round "6"]
[White "colegiodemadrid"]
[Black "Asteroxylon"]
[Result "1-0"]
[WhiteElo "2503"]
[BlackElo "2353"]
[TimeControl "180+1"]
[EndTime "9:06:44 PST"]
[Termination "colegiodemadrid won by resignation"]

1. Nf3 {[%clk 0:03:00.9]} 1... d5 {[%clk 0:02:59.6]} 2. d4 {[%clk 0:02:54.9]}
2... e6 {[%clk 0:02:56.2]} 3. Bf4 {[%clk 0:02:54.7]} 3... c5 {[%clk 0:02:55]} 4.
c3 {[%clk 0:02:53.5]} 4... Nc6 {[%clk 0:02:50.8]} 5. e3 {[%clk 0:02:53.1]} 5...
Nf6 {[%clk 0:02:45.2]} 6. Nbd2 {[%clk 0:02:51.2]} 6... cxd4 {[%clk 0:02:40.4]}
7. exd4 {[%clk 0:02:50.7]} 7... Nh5 {[%clk 0:02:40.5]} 8. Be3 {[%clk 0:02:50.9]}
8... Bd6 {[%clk 0:02:38.5]} 9. g3 {[%clk 0:02:44.3]} 9... f5 {[%clk 0:02:30.3]}
10. Ne5 {[%clk 0:02:32.1]} 10... g6 {[%clk 0:02:13.7]} 11. Be2 {[%clk
0:02:26.2]} 11... Nf6 {[%clk 0:01:52]} 12. Nd3 {[%clk 0:02:13.1]} 12... Qc7
{[%clk 0:01:46.9]} 13. Nf3 {[%clk 0:02:09.7]} 13... Ne4 {[%clk 0:01:45.2]} 14.
Bf4 {[%clk 0:02:01.2]} 14... Bd7 {[%clk 0:01:29.1]} 15. Bxd6 {[%clk 0:01:59.4]}
15... Qxd6 {[%clk 0:01:30]} 16. Nfe5 {[%clk 0:01:59.9]} 16... O-O {[%clk
0:01:26.6]} 17. f3 {[%clk 0:01:58.4]} 17... Nf6 {[%clk 0:01:23.5]} 18. O-O
{[%clk 0:01:56.4]} 18... Ne7 {[%clk 0:01:22]} 19. Qd2 {[%clk 0:01:53.6]} 19...
Rad8 {[%clk 0:01:20.6]} 20. Rae1 {[%clk 0:01:50]} 20... Bb5 {[%clk 0:01:19.8]}
21. Nf4 {[%clk 0:01:49.2]} 21... Bxe2 {[%clk 0:01:19.2]} 22. Rxe2 {[%clk
0:01:50.1]} 22... g5 {[%clk 0:01:19.2]} 23. Nfd3 {[%clk 0:01:33.5]} 23... h6
{[%clk 0:01:18.8]} 24. h4 {[%clk 0:01:29.9]} 24... Nh7 {[%clk 0:01:18.3]} 25.
hxg5 {[%clk 0:01:27.4]} 25... hxg5 {[%clk 0:01:17.7]} 26. Rh2 {[%clk 0:01:14.6]}
26... Rf6 {[%clk 0:01:02.3]} 27. Kg2 {[%clk 0:01:11.6]} 27... Kg7 {[%clk
0:00:45.5]} 28. Rfh1 {[%clk 0:01:04]} 28... Rh8 {[%clk 0:00:45.5]} 29. Rxh7+
{[%clk 0:00:58.3]} 29... Rxh7 {[%clk 0:00:45.8]} 30. Qxg5+ {[%clk 0:00:58.4]}
30... Ng6 {[%clk 0:00:46.1]} 31. Nf4 {[%clk 0:00:51.5]} 31... Rxh1 {[%clk
0:00:43.1]} 32. Kxh1 {[%clk 0:00:52.4]} 32... Qa6 {[%clk 0:00:31.3]} 33. Nh5+
{[%clk 0:00:45.6]} 33... Kg8 {[%clk 0:00:24.7]} 34. Nxf6+ {[%clk 0:00:44.6]}
34... Kf8 {[%clk 0:00:24.9]} 35. Qh6+ {[%clk 0:00:34.6]} 1-0

[Event "Early-Titled-Tuesday-Blitz-February-06-2024"]
[Site "Chess.com"]
[Date "2024.02.06"]
[Round "6"]
[White "Sattarov_Bobur"]
[Black "Msb2"]
[Result "1-0"]
[WhiteElo "2795"]
[BlackElo "2996"]
[TimeControl "180+1"]
[EndTime "9:06:47 PST"]
[Termination "Sattarov_Bobur won by checkmate"]

1. e4 {[%clk 0:02:59.5]} 1... e6 {[%clk 0:03:00.2]} 2. d4 {[%clk 0:02:59.6]}
2... d5 {[%clk 0:03:01]} 3. e5 {[%clk 0:03:00.1]} 3... c5 {[%clk 0:03:01.3]} 4.
c3 {[%clk 0:03:01]} 4... Nc6 {[%clk 0:03:02]} 5. Nf3 {[%clk 0:03:01.6]} 5...
Nge7 {[%clk 0:03:02.8]} 6. Na3 {[%clk 0:03:00.2]} 6... Bd7 {[%clk 0:03:02.6]} 7.
Bd3 {[%clk 0:02:54.9]} 7... cxd4 {[%clk 0:03:00.8]} 8. Nb5 {[%clk 0:02:52.4]}
8... Ng6 {[%clk 0:02:44.5]} 9. Qe2 {[%clk 0:02:17.8]} 9... dxc3 {[%clk 0:02:37]}
10. bxc3 {[%clk 0:02:17]} 10... a6 {[%clk 0:02:33.2]} 11. Nbd4 {[%clk
0:02:13.2]} 11... Nxd4 {[%clk 0:02:33.5]} 12. cxd4 {[%clk 0:02:03]} 12... Bb4+
{[%clk 0:02:33.1]} 13. Kf1 {[%clk 0:02:02.3]} 13... O-O {[%clk 0:02:25.9]} 14.
h4 {[%clk 0:02:01]} 14... f5 {[%clk 0:02:10.7]} 15. h5 {[%clk 0:01:56.4]} 15...
Nh8 {[%clk 0:02:06.5]} 16. Rb1 {[%clk 0:01:54.5]} 16... Rc8 {[%clk 0:01:54.9]}
17. Be3 {[%clk 0:01:49.8]} 17... Qa5 {[%clk 0:01:50.5]} 18. Ng5 {[%clk
0:01:41.2]} 18... Nf7 {[%clk 0:01:34.4]} 19. Nh3 {[%clk 0:01:31.2]} 19... b5
{[%clk 0:01:33.7]} 20. g4 {[%clk 0:01:28.7]} 20... f4 {[%clk 0:01:10]} 21. Nxf4
{[%clk 0:01:23.9]} 21... Be7 {[%clk 0:00:56.1]} 22. Bxh7+ {[%clk 0:00:57.2]}
22... Kxh7 {[%clk 0:00:57]} 23. Qd3+ {[%clk 0:00:57]} 23... Kg8 {[%clk
0:00:49.2]} 24. h6 {[%clk 0:00:57.5]} 24... Nxh6 {[%clk 0:00:27.2]} 25. Rxh6
{[%clk 0:00:56.6]} 25... gxh6 {[%clk 0:00:28.1]} 26. Qg6+ {[%clk 0:00:56]} 26...
Kh8 {[%clk 0:00:28.8]} 27. Qxh6+ {[%clk 0:00:55.9]} 27... Kg8 {[%clk 0:00:29.3]}
28. Qg6+ {[%clk 0:00:56.2]} 28... Kh8 {[%clk 0:00:29.9]} 29. Kg2 {[%clk
0:00:54.5]} 29... Bh4 {[%clk 0:00:22]} 30. Rh1 {[%clk 0:00:54]} 30... Qd8 {[%clk
0:00:20.2]} 31. g5 {[%clk 0:00:53.8]} 31... Rxf4 {[%clk 0:00:14.3]} 32. Bxf4
{[%clk 0:00:51.9]} 32... Qxg5+ {[%clk 0:00:07.9]} 33. Bxg5 {[%clk 0:00:51.6]}
33... Rg8 {[%clk 0:00:03.9]} 34. Rxh4# {[%clk 0:00:51.6]} 1-0

[Event "Early-Titled-Tuesday-Blitz-February-06-2024"]
[Site "Chess.com"]
[Date "2024.02.06"]
[Round "6"]
[White "Omranalhosani21"]
[Black "Sanyura"]
[Result "0-1"]
[WhiteElo "2509"]
[BlackElo "2682"]
[TimeControl "180+1"]
[EndTime "9:06:47 PST"]
[Termination "Sanyura won on time"]

1. d4 {[%clk 0:03:00.9]} 1... Nf6 {[%clk 0:02:52]} 2. c4 {[%clk 0:03:00.4]} 2...
g6 {[%clk 0:02:47.1]} 3. Nc3 {[%clk 0:03:00.2]} 3... Bg7 {[%clk 0:02:47.2]} 4.
e4 {[%clk 0:02:59.9]} 4... d6 {[%clk 0:02:47.5]} 5. h3 {[%clk 0:02:59.7]} 5...
O-O {[%clk 0:02:47.6]} 6. Be3 {[%clk 0:02:59.4]} 6... e5 {[%clk 0:02:47.6]} 7.
d5 {[%clk 0:02:59]} 7... a5 {[%clk 0:02:47.2]} 8. g4 {[%clk 0:02:54.9]} 8... Na6
{[%clk 0:02:37.8]} 9. Nge2 {[%clk 0:02:52.8]} 9... b6 {[%clk 0:02:35.1]} 10. Ng3
{[%clk 0:02:52.1]} 10... Nc5 {[%clk 0:02:34.4]} 11. Be2 {[%clk 0:02:51.6]} 11...
Ne8 {[%clk 0:02:31.6]} 12. h4 {[%clk 0:02:40]} 12... f5 {[%clk 0:02:27]} 13.
gxf5 {[%clk 0:02:39.6]} 13... gxf5 {[%clk 0:02:27.9]} 14. exf5 {[%clk
0:02:39.6]} 14... Bxf5 {[%clk 0:02:26.2]} 15. Nxf5 {[%clk 0:02:38.2]} 15... Rxf5
{[%clk 0:02:25.5]} 16. Qc2 {[%clk 0:02:34.5]} 16... Rf8 {[%clk 0:02:24.8]} 17.
O-O-O {[%clk 0:02:29]} 17... Qf6 {[%clk 0:02:20.6]} 18. Rdg1 {[%clk 0:02:11]}
18... Kh8 {[%clk 0:02:20]} 19. h5 {[%clk 0:02:07.1]} 19... Bh6 {[%clk
0:02:20.1]} 20. Kb1 {[%clk 0:01:44.9]} 20... Bxe3 {[%clk 0:02:18]} 21. fxe3
{[%clk 0:01:45.8]} 21... Qh6 {[%clk 0:02:18.1]} 22. Rh3 {[%clk 0:01:15.4]} 22...
Rf2 {[%clk 0:02:09.3]} 23. Nb5 {[%clk 0:01:07.5]} 23... a4 {[%clk 0:01:51.6]}
24. Rhg3 {[%clk 0:01:01.7]} 24... Nf6 {[%clk 0:01:51.1]} 25. Nxc7 {[%clk
0:01:00.9]} 25... Rc8 {[%clk 0:01:50.9]} 26. Ne6 {[%clk 0:00:59.2]} 26... a3
{[%clk 0:01:50.3]} 27. b4 {[%clk 0:00:48.4]} 27... Nce4 {[%clk 0:01:50.1]} 28.
R3g2 {[%clk 0:00:31.3]} 28... Rxg2 {[%clk 0:01:50]} 29. Rxg2 {[%clk 0:00:32.2]}
29... Qxe3 {[%clk 0:01:50.4]} 30. Bd3 {[%clk 0:00:25.5]} 30... Qe1+ {[%clk
0:01:34.2]} 31. Qc1 {[%clk 0:00:25.2]} 31... Qxb4+ {[%clk 0:01:26.7]} 32. Ka1
{[%clk 0:00:25.2]} 32... b5 {[%clk 0:01:08.3]} 33. Qf1 {[%clk 0:00:18.3]} 33...
Qc3+ {[%clk 0:01:05.9]} 34. Kb1 {[%clk 0:00:18]} 34... bxc4 {[%clk 0:01:04.9]}
35. Bxc4 {[%clk 0:00:05.6]} 35... Rxc4 {[%clk 0:01:04.4]} 0-1

[Event "Early-Titled-Tuesday-Blitz-February-06-2024"]
[Site "Chess.com"]
[Date "2024.02.06"]
[Round "6"]
[White "Manukyan_Artak"]
[Black "Al_Shima"]
[Result "1-0"]
[WhiteElo "2482"]
[BlackElo "2333"]
[TimeControl "180+1"]
[EndTime "9:06:49 PST"]
[Termination "Manukyan_Artak won by resignation"]

1. e4 {[%clk 0:03:00.9]} 1... c5 {[%clk 0:02:55.2]} 2. Nf3 {[%clk 0:03:00.3]}
2... e6 {[%clk 0:02:55.2]} 3. c3 {[%clk 0:03:00.1]} 3... Nf6 {[%clk 0:02:55]} 4.
e5 {[%clk 0:03:00.4]} 4... Nd5 {[%clk 0:02:55.2]} 5. d4 {[%clk 0:03:01.3]} 5...
cxd4 {[%clk 0:02:54.6]} 6. cxd4 {[%clk 0:03:02.2]} 6... Nc6 {[%clk 0:02:54.7]}
7. Nc3 {[%clk 0:03:03.1]} 7... Nxc3 {[%clk 0:02:54.7]} 8. bxc3 {[%clk 0:03:04]}
8... d6 {[%clk 0:02:55.3]} 9. Bd3 {[%clk 0:03:03.7]} 9... dxe5 {[%clk
0:02:55.5]} 10. dxe5 {[%clk 0:03:04.2]} 10... Qc7 {[%clk 0:02:55.8]} 11. Qe2
{[%clk 0:02:59.9]} 11... Bd7 {[%clk 0:02:53.7]} 12. O-O {[%clk 0:02:59.3]} 12...
Be7 {[%clk 0:02:53.3]} 13. Re1 {[%clk 0:02:48.4]} 13... h6 {[%clk 0:02:52.6]}
14. Qe4 {[%clk 0:02:41.2]} 14... Rc8 {[%clk 0:02:48.8]} 15. Qg4 {[%clk
0:02:40.2]} 15... g6 {[%clk 0:02:36.8]} 16. h4 {[%clk 0:02:29.1]} 16... h5
{[%clk 0:02:19.5]} 17. Qg3 {[%clk 0:02:22.6]} 17... Na5 {[%clk 0:02:05.5]} 18.
Bd2 {[%clk 0:01:27.1]} 18... Nc4 {[%clk 0:02:03.1]} 19. Bg5 {[%clk 0:01:27.1]}
19... Bc6 {[%clk 0:00:30.5]} 20. Bxc4 {[%clk 0:01:16.4]} 20... Bxf3 {[%clk
0:00:29.7]} 21. Qxf3 {[%clk 0:01:15.3]} 21... Qxc4 {[%clk 0:00:27]} 22. Bxe7
{[%clk 0:01:09.7]} 22... Kxe7 {[%clk 0:00:27.9]} 23. Qf6+ {[%clk 0:01:09.2]}
23... Kd7 {[%clk 0:00:22.3]} 24. Qxf7+ {[%clk 0:01:08.7]} 24... Kc6 {[%clk
0:00:19.3]} 25. Red1 {[%clk 0:01:07.8]} 25... Rhd8 {[%clk 0:00:18.3]} 26. Qxg6
{[%clk 0:01:02.1]} 26... Kc7 {[%clk 0:00:10.4]} 27. Qxh5 {[%clk 0:00:58.1]}
27... Kb8 {[%clk 0:00:08.7]} 28. Rxd8 {[%clk 0:00:52.7]} 28... Rxd8 {[%clk
0:00:09.6]} 29. Qg5 {[%clk 0:00:52.8]} 29... Rf8 {[%clk 0:00:03.7]} 30. Rd1
{[%clk 0:00:51.7]} 30... Qe2 {[%clk 0:00:02.7]} 31. Rd8+ {[%clk 0:00:50.6]} 1-0

[Event "Early-Titled-Tuesday-Blitz-February-06-2024"]
[Site "Chess.com"]
[Date "2024.02.06"]
[Round "6"]
[White "Ariadna_Atreides"]
[Black "JohnWhite1952"]
[Result "1-0"]
[WhiteElo "2173"]
[BlackElo "1961"]
[TimeControl "180+1"]
[EndTime "9:06:50 PST"]
[Termination "Ariadna_Atreides won on time"]

1. d4 {[%clk 0:03:00.9]} 1... Nf6 {[%clk 0:02:58.5]} 2. Nf3 {[%clk 0:03:00.1]}
2... g6 {[%clk 0:02:57.4]} 3. c4 {[%clk 0:02:57.2]} 3... Bg7 {[%clk 0:02:56.7]}
4. Nc3 {[%clk 0:02:57.9]} 4... d5 {[%clk 0:02:55.5]} 5. cxd5 {[%clk 0:02:54.5]}
5... Nxd5 {[%clk 0:02:54.6]} 6. e4 {[%clk 0:02:55]} 6... Nxc3 {[%clk 0:02:53.9]}
7. bxc3 {[%clk 0:02:55]} 7... O-O {[%clk 0:02:53.1]} 8. Be3 {[%clk 0:02:47.8]}
8... c5 {[%clk 0:02:50.7]} 9. Bc4 {[%clk 0:02:46]} 9... Nc6 {[%clk 0:02:47.7]}
10. O-O {[%clk 0:02:44]} 10... cxd4 {[%clk 0:02:44.3]} 11. cxd4 {[%clk 0:02:43]}
11... Bg4 {[%clk 0:02:42.7]} 12. e5 {[%clk 0:02:31.6]} 12... Qa5 {[%clk
0:02:24]} 13. Rb1 {[%clk 0:02:23.5]} 13... b6 {[%clk 0:02:17.4]} 14. h3 {[%clk
0:02:22.6]} 14... Bd7 {[%clk 0:02:02.3]} 15. Qb3 {[%clk 0:02:11.8]} 15... Nd8
{[%clk 0:01:18.3]} 16. Bg5 {[%clk 0:02:05]} 16... e6 {[%clk 0:01:07.5]} 17. Qe3
{[%clk 0:01:55.5]} 17... Rc8 {[%clk 0:00:58.3]} 18. Rfc1 {[%clk 0:01:51.4]}
18... Nc6 {[%clk 0:00:46.9]} 19. Bh6 {[%clk 0:01:37.3]} 19... Bxh6 {[%clk
0:00:42.6]} 20. Qxh6 {[%clk 0:01:37.3]} 20... f5 {[%clk 0:00:28.9]} 21. Ng5
{[%clk 0:01:31.6]} 21... Rf7 {[%clk 0:00:16.1]} 22. Nxf7 {[%clk 0:01:30.7]}
22... Kxf7 {[%clk 0:00:15]} 23. Qxh7+ {[%clk 0:01:31.3]} 23... Kf8 {[%clk
0:00:13.2]} 24. Qxg6 {[%clk 0:01:31.1]} 24... Nxd4 {[%clk 0:00:09.5]} 25. Bf1
{[%clk 0:01:03.6]} 25... Qxe5 {[%clk 0:00:05.5]} 26. Rd1 {[%clk 0:00:49.8]}
26... Rc2 {[%clk 0:00:02.4]} 27. Qh6+ {[%clk 0:00:40.8]} 27... Kg8 {[%clk
0:00:01.5]} 28. Qe3 {[%clk 0:00:40.6]} 1-0